fUST/lending_fUST_20240103
["ID","MTS","AMOUNT","RATE_DAILY","PERIOD"]
[309901269,1704214232544,-500.0,0.00046507,21]
[309901270,1704214232554,-500.0,0.00046507,21]
[309901271,1704214232563,-500.0,0.00046507,21]
[309901272,1704214232573,-223.23790234,0.00046507,21]
[309901273,1704214232582,-500.0,0.00046507,21]
[309901274,1704214232591,-500.0,0.00046507,21]
[309901275,1704214232601,-578.5486869,0.00046507,21]
[309901276,1704214232610,-500.0,0.00046507,21]
[309901277,1704214232621,-500.0,0.00046507,21]
[309901278,1704214232633,-500.0,0.00046507,21]
[309901279,1704214232643,-500.0,0.00046507,21]
[309901280,1704214232653,-507.0645809,0.00046507,21]
[309901281,1704214232662,-510.42695868,0.00046507,21]
[309901282,1704214232672,-505.24422187,0.00046507,21]
[309901283,1704214232682,-313.52286254,0.00046507,21]
[309901341,1704214238083,-150.0,0.00044971,2]
[309901343,1704214238093,-298.96769735,0.00046469,15]
[309901344,1704214238102,-72.03266735,0.00046507,21]
[309901347,1704214238114,-114.44447011,0.00046507,21]
[309901349,1704214238126,-412.68507445,0.00046507,21]
[309901583,1704214241005,-500.0,0.00046506,21]
[309901585,1704214241015,-500.0,0.00046506,21]
[309901587,1704214241024,-87.31492555,0.00046507,21]
[309901588,1704214241034,-500.0,0.00046507,21]
[309901590,1704214241043,-500.0,0.00046507,21]
[309901592,1704214241052,-500.0,0.00046507,21]
[309901594,1704214241062,-613.75424218,0.00046507,21]
[309901595,1704214241071,-500.0,0.00046507,21]
[309901597,1704214241081,-500.0,0.00046507,21]
[309901600,1704214241103,-500.0,0.00046507,21]
[309901603,1704214241114,-500.0,0.00046507,21]
[309901606,1704214241125,-500.0,0.00046507,21]
[309901608,1704214241136,-570.22426744,0.00046507,21]
[309901610,1704214241145,-500.0,0.00046507,21]
[309901611,1704214241155,-500.0,0.00046507,21]
[309901613,1704214241166,-500.0,0.00046507,21]
[309901615,1704214241176,-500.0,0.00046507,21]
[309901617,1704214241186,-500.0,0.00046507,21]
[309901619,1704214241197,-500.0,0.00046507,21]
[309901620,1704214241208,-500.0,0.00046507,21]
[309901621,1704214241220,-500.0,0.00046507,21]
[309901623,1704214241230,-500.0,0.00046507,21]
[309901625,1704214241241,-500.0,0.00046507,21]
[309901627,1704214241251,-241.17210933,0.00046507,21]
[309901628,1704214241262,-500.0,0.00046507,21]
[309901630,1704214241273,-500.0,0.00046507,21]
[309901632,1704214241283,-226.29236931,0.00046507,21]
[309901634,1704214241293,-505.83205928,0.00046507,21]
[309901635,1704214241304,-500.0,0.00046507,21]
[309901637,1704214241314,-500.0,0.00046507,21]
[309901639,1704214241324,-625.0,0.00046507,21]
[309901641,1704214241333,-500.0,0.00046507,21]
[309901642,1704214241344,-500.0,0.00046507,21]
[309901644,1704214241352,-500.0,0.00046507,21]
[309901646,1704214241363,-500.0,0.00046507,21]
[309901648,1704214241373,-772.21,0.00046507,3]
[309901649,1704214241382,-772.21,0.00046507,3]
[309901651,1704214241392,-772.21,0.00046507,3]
[309901653,1704214241402,-242.44282515,0.00046507,21]
[309901660,1704214241469,-375.97238283,0.00046507,21]
[309901662,1704214241480,-192.57574561,0.00046507,21]
[309901807,1704214242938,-307.42425439,0.00046507,21]
[309901809,1704214242947,-456.99652081,0.00046507,21]
[309901811,1704214242957,-157.9392248,0.00046507,21]
[309901813,1704214242969,-346.01787817,0.00046507,21]
[309901815,1704214242979,-500.0,0.00046507,21]
[309901816,1704214242989,-500.0,0.00046507,21]
[309901818,1704214242999,-29.65404188,0.00046507,21]
[309901820,1704214243012,-470.34595812,0.00046507,21]
[309901822,1704214243022,-500.0,0.00046507,21]
[309901824,1704214243032,-500.0,0.00046507,21]
[309901826,1704214243042,-409.64403188,0.00046507,21]
[309902047,1704214245972,-154.78330338,0.00041913,8]
[309902049,1704214245981,-766.29,0.00046502,3]
[309902051,1704214245991,-90.35596812,0.00046507,21]
[309902053,1704214246000,-500.0,0.00046507,21]
[309902055,1704214246009,-500.0,0.00046507,21]
[309902057,1704214246019,-500.0,0.00046507,21]
[309902059,1704214246028,-500.0,0.00046507,21]
[309902061,1704214246037,-987.45,0.00046507,21]
[309902063,1704214246047,-987.45,0.00046507,21]
[309902065,1704214246057,-987.45,0.00046507,21]
[309902067,1704214246066,-500.0,0.00046507,21]
[309902069,1704214246076,-390.36084847,0.00046507,21]
[309905560,1704215226095,-154.78330338,0.00029499,4]
[309905561,1704215226116,-524.56274088,0.000295,30]
[309905562,1704215226138,-168.31837683,0.00029899,2]
[309905563,1704215233132,-2.93786388,0.00029899,2]
[309905564,1704215233153,-150.0,0.00029999,5]
[309905565,1704215233174,-4.63175442,0.0003,10]
[309905579,1704215313459,293.01856694,0.00022,4]
[309905588,1704215346113,-995.51845223,0.0003,10]
[309905680,1704215432027,-17.92023826,0.0003,10]
[309905682,1704215432036,-154.61976731,0.00041808,2]
[309905684,1704215432046,-154.6197673,0.00041845,2]
[309905686,1704215432055,-86.40422888,0.00041881,2]
[309905690,1704215432080,-68.21553842,0.00041881,2]
[309905692,1704215432089,-154.78330338,0.00041908,8]
[309905694,1704215432099,-1000.0,0.00041909,7]
[309905696,1704215432109,-178.736617,0.00041981,2]
[309905698,1704215432118,-1379.08627427,0.00043,7]
[309905747,1704215438270,-521.0003647,0.00043,7]
[309905748,1704215438282,-527.12954456,0.00043,7]
[309905749,1704215438293,-1372.03666731,0.00043,7]
[309905750,1704215438303,-174.917096,0.0004439,2]
[309905751,1704215438313,-150.0,0.00044407,2]
[309905752,1704215438322,-202.997715,0.00044424,120]
[309905753,1704215438332,-190.0,0.00044971,2]
[309905754,1704215438341,-910.04852169,0.0004498,2]
[309905797,1704215443144,-1873.36823681,0.0004498,2]
[309905798,1704215443157,-2831.71404576,0.0004498,2]
[309905799,1704215443168,-434.35036125,0.0004498,2]
[309905800,1704215443179,-2171.01414864,0.0004498,2]
[309905832,1704215446189,-154.78330338,0.00041911,8]
[309905834,1704215446199,-14058.11288596,0.0004498,2]
[309905836,1704215446211,-6950.02482729,0.0004498,2]
[309905931,1704216334021,202.997715,0.00037773,120]
[309905933,1704216433105,-154.78330338,0.00029874,4]
[309905934,1704216433127,-378.93821012,0.00029874,2]
[309905937,1704216556112,-899.8529685,0.00029874,2]
[309905938,1704216556134,-524.83738866,0.00029875,2]
[309905939,1704216556156,-171.10469175,0.00029876,2]
[309905940,1704216556176,-11731.281089,0.00036265,2]
[309905941,1704216556197,-1000.0,0.00036499,7]
[309905942,1704216556216,-873.6,0.000365,5]
[309905943,1704216556239,-280.89674895,0.00036612,2]
[309905944,1704216565143,-168.057017,0.00035133,2]
[309905945,1704216565164,-18.49773605,0.00036612,2]
[309905946,1704216565185,-24887.66234991,0.00037295,2]
[309906130,1704216638379,-12.33765009,0.00037295,2]
[309906132,1704216638389,-154.78330338,0.00037966,5]
[309906134,1704216638399,-299.394485,0.00037967,2]
[309906136,1704216638409,-202.27637808,0.0003799,2]
[309906138,1704216638421,-747.90263447,0.0003799,2]
[309906140,1704216638432,-197.67545489,0.0003799,2]
[309906142,1704216638441,-178.736617,0.00038101,2]
[309906144,1704216638450,-209.27738814,0.00038546,2]
[309906146,1704216638459,-299.394485,0.00039321,2]
[309906148,1704216638469,-174.658866,0.00039669,2]
[309906151,1704216638479,-250.0,0.00039891,30]
[309906152,1704216638488,-168.057017,0.00039922,2]
[309906153,1704216638497,-1625.19932967,0.00039922,2]
[309906154,1704216638506,-299.394485,0.00040676,2]
[309906155,1704216638515,-299.394485,0.00042031,2]
[309906156,1704216638524,-150.0,0.0004288,2]
[309906157,1704216638533,-155.0,0.00043071,14]
[309906158,1704216638543,-155.0,0.00043071,14]
[309906159,1704216638552,-657.88068077,0.00043879,7]
[309906160,1704216638563,-342.11931923,0.00043879,7]
[309906161,1704216638573,-350.0,0.0004388,30]
[309906162,1704216638582,-309.6356628,0.00044278,2]
[309906163,1704216638591,-1074.36124576,0.00044976,2]
[309906164,1704216638601,-17579.74300502,0.0004498,2]
[309906165,1704216638612,-4380.0,0.0004498,2]
[309906166,1704216638623,-1461.65388815,0.0004498,2]
[309906171,1704216638741,-253796.97759134,0.0004498,2]
[309906173,1704216638753,-17758.96658763,0.0004498,2]
[309906175,1704216638766,-11966.20541557,0.0004498,2]
[309906178,1704216638777,-1165.84399679,0.0004498,2]
[309906180,1704216638788,-3425.23626751,0.0004498,2]
[309906182,1704216638800,-6181.2442612,0.0004498,2]
[309906184,1704216638811,-521.0003647,0.0004498,2]
[309906187,1704216638823,-527.12954456,0.0004498,2]
[309906459,1704216641565,-4098.92514526,0.0004498,2]
[309906462,1704216641577,-9203.48917011,0.0004498,2]
[309906464,1704216641589,-5245.8738841,0.0004498,2]
[309906466,1704216641600,-5621.49589336,0.0004498,2]
[309906634,1704216643308,-1679.00284944,0.0004498,2]
[309906637,1704216643321,-3098.08249506,0.0004498,2]
[309906937,1704216646294,-5012.39218382,0.0004498,2]
[309906939,1704216646303,-7333.62389828,0.0004498,60]
[309906945,1704216646351,-784.77621584,0.0004498,60]
[309912588,1704217834096,-154.82968734,0.00037984,5]
[309912589,1704217834106,-1000.0,0.00037985,7]
[309912590,1704217834116,-285.05370376,0.00038025,2]
[309912591,1704217834125,-392.35699479,0.00038546,2]
[309912592,1704217834135,-1817.75961411,0.00041851,4]
[309912634,1704217838598,-521.0003647,0.00041851,4]
[309912637,1704217838610,-527.12954456,0.00041851,4]
[309912642,1704217838656,-397.81232748,0.00041851,4]
[309912644,1704217838666,-150.0,0.0004288,2]
[309912646,1704217838675,-550.0,0.00043835,7]
[309912648,1704217838684,-550.0,0.00044109,7]
[309912650,1704217838694,-550.0,0.00044383,7]
[309912652,1704217838703,-1500.0,0.000444,3]
[309912654,1704217838712,-562.90617555,0.00044657,7]
[309912656,1704217838722,-2541.75381017,0.00044974,4]
[309912658,1704217838731,-1074.36124576,0.00044976,2]
[309912660,1704217838740,-17595.18482862,0.0004498,60]
[309912662,1704217838750,-2431.11234184,0.0004498,4]
[309912664,1704217838759,-1500.0,0.000454,3]
[309912666,1704217838768,-150.0,0.00045428,2]
[309912668,1704217838777,-154.0,0.0004549,120]
[309912670,1704217838786,-167.72,0.0004562,2]
[309912672,1704217838795,-167.72,0.0004562,2]
[309912674,1704217838804,-167.72,0.0004562,2]
[309912676,1704217838814,-167.72,0.0004562,2]
[309912678,1704217838825,-167.72,0.0004562,2]
[309912680,1704217838835,-167.72,0.0004562,2]
[309912682,1704217838844,-268.74172019,0.0004562,2]
[309912684,1704217838854,-829.86,0.00046086,3]
[309912686,1704217838863,-691.55,0.00046086,3]
[309912688,1704217838872,-576.29,0.00046086,3]
[309912689,1704217838882,-1574.13,0.00046095,21]
[309912690,1704217838891,-1574.13,0.00046095,21]
[309912691,1704217838900,-500.0,0.00046095,10]
[309912692,1704217838910,-500.0,0.00046095,10]
[309912693,1704217838919,-226.37786839,0.00046095,21]
[309912694,1704217838929,-500.0,0.00046095,21]
[309912695,1704217838939,-240.67710296,0.00046095,21]
[309912696,1704217838949,-500.0,0.00046095,21]
[309912697,1704217838959,-500.0,0.00046095,21]
[309912698,1704217838970,-500.0,0.00046095,21]
[309912699,1704217838980,-500.0,0.00046095,21]
[309912700,1704217838989,-163.9459212,0.00046095,21]
[309912701,1704217839000,-151.0,0.00046096,7]
[309912702,1704217839011,-151.0,0.00046096,7]
[309912703,1704217839020,-500.0,0.00046096,21]
[309912704,1704217839030,-500.0,0.00046096,21]
[309912705,1704217839040,-500.0,0.00046096,21]
[309912706,1704217839050,-501.59472692,0.00046096,21]
[309912707,1704217839060,-500.0,0.00046096,21]
[309912708,1704217839070,-503.92753965,0.00046096,21]
[309912709,1704217839080,-500.0,0.00046096,21]
[309912710,1704217839090,-379.82158028,0.00046096,21]
[309912711,1704217839100,-500.0,0.00046096,21]
[309912712,1704217839110,-500.0,0.00046096,21]
[309912713,1704217839120,-500.0,0.00046096,21]
[309912714,1704217839130,-177.36731028,0.00046096,21]
[309912715,1704217839139,-500.0,0.00046096,21]
[309912716,1704217839149,-500.0,0.00046096,21]
[309912717,1704217839160,-504.20853814,0.00046096,21]
[309912718,1704217839170,-500.0,0.00046096,21]
[309912719,1704217839180,-501.1761961,0.00046096,21]
[309912720,1704217839191,-500.0,0.00046096,21]
[309912721,1704217839202,-500.0,0.00046096,21]
[309912722,1704217839212,-500.0,0.00046096,21]
[309912723,1704217839222,-500.0,0.00046096,21]
[309912724,1704217839233,-394.48186156,0.00046096,21]
[309912725,1704217839244,-500.0,0.00046096,21]
[309912726,1704217839255,-247.27668334,0.00046096,21]
[309912727,1704217839265,-500.0,0.00046096,21]
[309912728,1704217839274,-500.0,0.00046096,21]
[309912729,1704217839284,-500.0,0.00046096,21]
[309912730,1704217839295,-408.98138975,0.00046096,21]
[309912731,1704217839307,-500.0,0.00046096,21]
[309912732,1704217839319,-500.0,0.00046096,21]
[309912733,1704217839330,-181.82594525,0.00046096,21]
[309912734,1704217839341,-500.0,0.00046096,21]
[309912735,1704217839352,-530.69378414,0.00046096,21]
[309912736,1704217839362,-500.0,0.00046096,21]
[309912737,1704217839373,-500.0,0.00046096,21]
[309912738,1704217839387,-500.0,0.00046096,21]
[309912739,1704217839401,-202.21765254,0.00046096,21]
[309912740,1704217839415,-199.30943502,0.00046096,21]
[309912741,1704217839428,-500.0,0.00046096,21]
[309912742,1704217839442,-500.0,0.00046096,21]
[309912743,1704217839455,-500.0,0.00046096,21]
[309912744,1704217839467,-500.0,0.00046096,21]
[309912745,1704217839481,-526.24216338,0.00046096,21]
[309912746,1704217839495,-500.0,0.00046096,21]
[309912747,1704217839511,-187.57620146,0.00046096,21]
[309912748,1704217839523,-500.0,0.00046096,21]
[309912749,1704217839536,-500.0,0.00046096,21]
[309912750,1704217839551,-948.82,0.00046096,21]
[309912751,1704217839564,-948.82,0.00046096,21]
[309912752,1704217839577,-948.82,0.00046096,21]
[309912753,1704217839590,-500.0,0.00046096,21]
[309912754,1704217839603,-181.12649735,0.00046096,21]
[309912755,1704217839615,-500.0,0.00046096,21]
[309912756,1704217839626,-500.0,0.00046096,21]
[309912757,1704217839638,-500.0,0.00046096,21]
[309912758,1704217839653,-501.01871338,0.00046096,21]
[309912759,1704217839666,-500.0,0.00046096,21]
[309912760,1704217839679,-501.02467555,0.00046096,21]
[309912761,1704217839691,-243.05078564,0.00046096,21]
[309912762,1704217839703,-500.0,0.00046096,21]
[309912763,1704217839715,-500.0,0.00046096,21]
[309912764,1704217839727,-500.0,0.00046096,21]
[309912765,1704217839742,-500.0,0.00046096,21]
[309912766,1704217839756,-500.0,0.00046096,21]
[309912767,1704217839768,-500.0,0.00046096,21]
[309912768,1704217839778,-500.0,0.00046096,21]
[309912769,1704217839788,-500.0,0.00046096,21]
[309912770,1704217839797,-500.0,0.00046096,21]
[309912771,1704217839810,-591.65839959,0.00046096,21]
[309912772,1704217839821,-500.0,0.00046096,21]
[309912773,1704217839833,-500.0,0.00046096,21]
[309912774,1704217839845,-500.0,0.00046096,21]
[309912775,1704217839858,-500.0,0.00046096,21]
[309912776,1704217839869,-500.0,0.00046096,21]
[309912777,1704217839881,-500.0,0.00046096,21]
[309912778,1704217839891,-637.43816399,0.00046096,21]
[309912779,1704217839902,-500.0,0.00046096,21]
[309912780,1704217839914,-500.0,0.00046096,21]
[309912781,1704217839925,-500.0,0.00046096,21]
[309912782,1704217839936,-500.0,0.00046096,21]
[309912783,1704217839947,-500.0,0.00046096,21]
[309912784,1704217839961,-500.0,0.00046096,21]
[309912785,1704217839972,-500.0,0.00046096,21]
[309912786,1704217839985,-500.0,0.00046096,21]
[309912787,1704217839996,-500.0,0.00046096,21]
[309912788,1704217840008,-500.0,0.00046096,21]
[309912789,1704217840019,-500.0,0.00046096,21]
[309912790,1704217840030,-500.0,0.00046096,21]
[309912791,1704217840039,-500.0,0.00046096,21]
[309912792,1704217840049,-500.0,0.00046096,21]
[309912793,1704217840059,-500.0,0.00046096,21]
[309912794,1704217840069,-500.0,0.00046096,21]
[309912795,1704217840079,-500.0,0.00046096,21]
[309912796,1704217840089,-500.0,0.00046096,21]
[309912797,1704217840101,-255.49757785,0.00046096,21]
[309912798,1704217840111,-500.0,0.00046096,21]
[309912799,1704217840122,-500.0,0.00046096,21]
[309912800,1704217840131,-500.0,0.00046096,21]
[309912801,1704217840142,-300.0,0.00046096,12]
[309912802,1704217840153,-208.53837217,0.00046096,12]
[309912803,1704217840163,-500.0,0.00046096,21]
[309912804,1704217840173,-500.0,0.00046096,21]
[309912805,1704217840183,-124.33246451,0.00046096,21]
[309912806,1704217840199,-375.66753549,0.00046096,21]
[309912807,1704217840209,-500.0,0.00046096,21]
[309912808,1704217840219,-1638.63,0.00046096,3]
[309912809,1704217840229,-1638.63,0.00046096,3]
[309912810,1704217840239,-1638.63,0.00046096,3]
[309912811,1704217840249,-500.0,0.00046096,21]
[309912812,1704217840259,-500.0,0.00046096,21]
[309912813,1704217840269,-500.0,0.00046096,21]
[309912814,1704217840280,-500.0,0.00046096,21]
[309912815,1704217840290,-500.0,0.00046096,21]
[309912816,1704217840301,-500.0,0.00046096,21]
[309912817,1704217840311,-368.80845223,0.00046096,21]
[309912818,1704217840322,-500.0,0.00046096,21]
[309912819,1704217840333,-500.0,0.00046096,21]
[309912820,1704217840343,-500.0,0.00046096,21]
[309912821,1704217840354,-500.0,0.00046096,21]
[309912822,1704217840364,-500.0,0.00046096,21]
[309912823,1704217840375,-500.0,0.00046096,21]
[309912824,1704217840385,-283.8306823,0.00046096,21]
[309912825,1704217840399,-239.1599407,0.00046096,21]
[309912826,1704217840410,-500.0,0.00046096,21]
[309912827,1704217840421,-500.0,0.00046096,21]
[309912828,1704217840431,-500.0,0.00046096,21]
[309912829,1704217840441,-500.0,0.00046096,21]
[309912830,1704217840452,-617.04094323,0.00046096,21]
[309912834,1704217840551,-500.0,0.00046096,21]
[309912836,1704217840562,-500.0,0.00046096,21]
[309912838,1704217840571,-509.60108971,0.00046096,21]
[309912839,1704217840581,-500.0,0.00046096,21]
[309912840,1704217840590,-500.0,0.00046096,21]
[309912842,1704217840599,-500.0,0.00046096,21]
[309912843,1704217840609,-500.0,0.00046096,21]
[309912844,1704217840620,-500.0,0.00046096,21]
[309912845,1704217840629,-500.0,0.00046096,21]
[309912846,1704217840638,-500.0,0.00046096,21]
[309912847,1704217840648,-501.04426696,0.00046096,21]
[309912849,1704217840657,-500.0,0.00046096,21]
[309912850,1704217840666,-500.0,0.00046096,21]
[309912851,1704217840675,-170.22111711,0.00046096,21]
[309912852,1704217840688,-329.77888289,0.00046096,21]
[309912853,1704217840698,-500.0,0.00046096,21]
[309912854,1704217840708,-508.17710356,0.00046096,21]
[309912855,1704217840717,-229.24205179,0.00046096,21]
[309912857,1704217840726,-500.0,0.00046096,21]
[309912858,1704217840737,-500.0,0.00046096,21]
[309912859,1704217840745,-500.0,0.00046096,21]
[309912860,1704217840755,-500.0,0.00046096,21]
[309912861,1704217840764,-1574.13,0.00046096,21]
[309912862,1704217840773,-1574.13,0.00046096,21]
[309912863,1704217840783,-1371.75,0.00046096,21]
[309912864,1704217840792,-1371.75,0.00046096,21]
[309912865,1704217840801,-500.0,0.00046096,21]
[309912866,1704217840810,-522.90079025,0.00046096,21]
[309912867,1704217840820,-828.01,0.00046096,21]
[309912868,1704217840830,-500.0,0.00046096,21]
[309912869,1704217840839,-828.01,0.00046096,21]
[309912870,1704217840849,-500.0,0.00046096,21]
[309912871,1704217840858,-828.01,0.00046096,21]
[309912872,1704217840867,-500.0,0.00046096,21]
[309912873,1704217840877,-500.0,0.00046096,21]
[309912874,1704217840886,-551.97,0.00046096,21]
[309912875,1704217840895,-551.97,0.00046096,21]
[309912876,1704217840904,-500.0,0.00046096,21]
[309912877,1704217840913,-500.0,0.00046096,21]
[309912878,1704217840922,-501.65934073,0.00046096,21]
[309912879,1704217840932,-241.62882992,0.00046096,21]
[309912880,1704217840941,-500.0,0.00046096,21]
[309912881,1704217840950,-569.67917094,0.00046096,21]
[309912882,1704217840959,-500.0,0.00046096,21]
[309912883,1704217840969,-500.0,0.00046096,21]
[309912884,1704217840978,-500.0,0.00046096,21]
[309912885,1704217840988,-500.0,0.00046096,21]
[309912886,1704217840998,-372.86111981,0.00046096,21]
[309912887,1704217841007,-500.0,0.00046096,21]
[309912888,1704217841016,-500.0,0.00046096,21]
[309912889,1704217841026,-500.0,0.00046096,21]
[309912890,1704217841035,-576.59745051,0.00046096,21]
[309912891,1704217841045,-500.0,0.00046096,21]
[309912892,1704217841055,-500.0,0.00046096,21]
[309912893,1704217841064,-500.0,0.00046096,21]
[309912894,1704217841073,-481.26652372,0.00046096,21]
[309912919,1704217841580,-323.82071815,0.00046086,3]
[309913133,1704217843488,-18.73347628,0.00046096,21]
[309913135,1704217843498,-500.0,0.00046096,21]
[309913137,1704217843508,-213.50723643,0.00046096,21]
[309913141,1704217843533,-286.49276357,0.00046096,21]
[309913143,1704217843543,-500.0,0.00046096,21]
[309913145,1704217843552,-231.59900736,0.00046096,21]
[309913147,1704217843563,-500.0,0.00046096,21]
[309913149,1704217843575,-507.32205019,0.00046096,21]
[309913151,1704217843586,-500.0,0.00046096,21]
[309913153,1704217843596,-500.0,0.00046096,21]
[309913155,1704217843606,-500.0,0.00046096,21]
[309913157,1704217843617,-500.0,0.00046096,21]
[309913159,1704217843625,-500.0,0.00046096,21]
[309913161,1704217843635,-500.0,0.00046096,21]
[309913163,1704217843646,-433.30429436,0.00046096,21]
[309913165,1704217843659,-66.69570564,0.00046096,21]
[309913167,1704217843669,-347.30429436,0.00046096,21]
[309913170,1704217843682,-152.69570564,0.00046096,21]
[309913172,1704217843694,-500.0,0.00046096,10]
[309913174,1704217843704,-500.0,0.00046096,10]
[309913175,1704217843713,-427.08512654,0.00046096,21]
[309913439,1704217846496,-72.91487346,0.00046096,21]
[309913441,1704217846506,-352.20417234,0.00046096,21]
[309913443,1704217846515,-414.20100595,0.00046096,21]
[309920545,1704218064997,3085.13175196,0.00021,7]
[309920546,1704218066665,4000.0,0.0002104,15]
[309920561,1704218837088,-157.5696183,0.00029496,2]
[309920562,1704218839091,-847.66442109,0.00029496,2]
[309920577,1704218945120,-154.82968734,0.00029492,4]
[309920578,1704218945140,-899.8529685,0.00029493,2]
[309920579,1704218945162,-513.65821812,0.00029496,2]
[309920580,1704218947162,-3343.58651612,0.00029496,2]
[309920581,1704218947183,-517.43681799,0.000295,30]
[309920631,1704219032657,-7.12592289,0.000295,30]
[309920633,1704219032666,-990.2531988,0.00037999,7]
[309920721,1704219038883,-9.7468012,0.00037999,7]
[309920723,1704219038893,-511.2535635,0.00038,3]
[309920726,1704219038905,-527.12954456,0.00038,3]
[309921082,1704219042485,-1674.72016629,0.00038,3]
[309921084,1704219042497,-384.97922071,0.00038,3]
[309921086,1704219042506,-154.82968734,0.00038999,5]
[309921088,1704219042515,-500.0,0.00039,2]
[309921090,1704219042524,-500.0,0.0004,7]
[309921092,1704219042534,-500.0,0.0004,7]
[309921094,1704219042543,-500.0,0.0004,7]
[309921096,1704219042552,-500.0,0.0004,7]
[309921098,1704219042561,-7539.00412724,0.00041483,4]
[309921100,1704219042570,-2280.04075013,0.00042226,2]
[309921218,1704219043719,-3885.69593237,0.00042226,2]
[309921220,1704219043729,-1048.12990926,0.00043,7]
[309921222,1704219043739,-171.9339104,0.00043131,2]
[309921224,1704219043748,-577.34213549,0.00043788,4]
[309921544,1704219046697,-470.78777377,0.00043788,4]
[309921546,1704219046707,-495.31512757,0.0004379,5]
[309921548,1704219046717,-150.0,0.00043996,2]
[309921550,1704219046725,-300.0,0.00043999,30]
[309921552,1704219046735,-150.81901718,0.00044871,2]
[309921554,1704219046744,-215.47910818,0.00045078,4]
[309928050,1704219695118,262.508057,0.00039239,120]
[309928061,1704220043244,-154.82968734,0.00038351,5]
[309928062,1704220043265,-378.89182616,0.00038351,4]
[309928144,1704220231869,-1050.30153828,0.00037237,4]
[309928146,1704220231879,-1000.0,0.00037238,7]
[309928148,1704220231889,-154.82968734,0.00037238,5]
[309928150,1704220231898,-9259.0709344,0.00037239,2]
[309928151,1704220231907,-183.15297591,0.00037604,4]
[309928153,1704220231917,-6533.08088587,0.00037605,4]
[309928154,1704220231926,-1731.39134117,0.00037606,4]
[309928156,1704220231936,-1209.0155047,0.00037606,4]
[309928158,1704220231945,-705.1558005,0.00037607,4]
[309928160,1704220231955,-280.8967527,0.00037608,2]
[309928161,1704220231964,-2041.92,0.0003834,3]
[309928163,1704220231973,-1701.6,0.0003834,3]
[309928165,1704220231982,-156.4879061,0.00038349,4]
[309928166,1704220231992,-7926.53185591,0.00038349,2]
[309928167,1704220232001,-59825.27369377,0.0003835,4]
[309928207,1704220238050,-705.1558005,0.00037237,4]
[309928208,1704220238059,-4298.49321064,0.00037238,4]
[309928209,1704220238071,-3174.55015582,0.00037238,4]
[309928211,1704220238082,-1134.42116266,0.00037238,4]
[309928221,1704220238159,-521.0003647,0.00037238,4]
[309928223,1704220238172,-527.12954456,0.00037238,4]
[309928733,1704220242956,-20037.28438585,0.00037238,4]
[309928736,1704220242965,-361.16558539,0.00038349,4]
[309929014,1704220245892,-3332.66562424,0.00037236,2]
[309929016,1704220245901,-1209.0155047,0.00038348,4]
[309929018,1704220245910,-9076.61169852,0.00038349,4]
[309931840,1704220470852,-10133.45401892,0.00036243,4]
[309931841,1704220470873,-6317.65240248,0.00036244,4]
[309931842,1704220470894,-3369.2031304,0.00036245,4]
[309931843,1704221030592,1000.0,0.00034,7]
[309931844,1704221050222,21.619379,0.00035616,120]
[309931845,1704221085580,-154.82968734,0.00032813,4]
[309931846,1704221085602,-154.82968734,0.00032814,5]
[309931847,1704221085623,-4016.4683794,0.00034291,4]
[309931848,1704221085643,-17223.87224592,0.00034292,4]
[309931849,1704221250095,-10133.45401892,0.00032706,4]
[309931850,1704221250119,-5348.11886794,0.00032706,3]